Cogmind - Beta 13 @@@ ROGUE MODE // 2024.05.15 @ 18:26:56 Player: b00n1n Result: Destroyed by G-47 Trooper with Particle Gun Performance ------------- Evolutions (2) 1000 Regions Visited (5) 1000 Robots Destroyed (45) 225 Value Destroyed (1350) 1350 Prototype IDs (0) 0 Alien Tech Used (0) 0 Bonus (0) 0 TOTAL SCORE: 3575 Bonus ------- None Cogmind --------- Core Integrity 0/550 Matter 235/500 Energy 100/100 System Corruption 0% Temperature Cool (9) Movement Core (100) Ox1 Location -8/Storage Parts ------- > --- POWER (1) -------- (None) > --- PROPULSION (4) --- (None) > --- UTILITY (3) ------ High-capacity Matter Pod > --- WEAPON (3) ------- Mining Claw > --- INVENTORY (5) ---- Light Ion Engine Reinforced Ion Engine Medium Storage Unit Tractor Beam Peak State ------------ > --- POWER ------------ Light Nuclear Core > --- PROPULSION ------- Aluminum Leg Aluminum Leg Aluminum Leg Carbon-fiber Leg > --- UTILITY ---------- Medium Storage Unit Recoil Stabilizer Light Armor Plating > --- WEAPON ----------- Assault Rifle Assault Rifle Gauss Rifle > --- INVENTORY -------- Light Ion Engine Light Nuclear Core Improved Treads Aluminum Leg Aluminum Leg High-capacity Matter Pod Shield Generator Assault Rifle Grenade Launcher Mining Claw [Rating: 21] Favorites ----------- Power Light Ion Engine Engine Light Ion Engine Power Core Light Nuclear Core Propulsion Aluminum Leg Treads Light Treads Leg Aluminum Leg Utility Medium Storage Unit Device Tractor Beam Storage Medium Storage Unit Protection Light Armor Plating Weapon Assault Rifle Ballistic Gun Assault Rifle Ballistic Cannon Light Cannon Launcher Grenade Launcher Slashing Weapon Mining Claw Build | -11 -10 -10 -9 -8 -8 ------- Run | Yrd Mat Min Mat Mat Sto Slots Evolved 4 | . . . 2 2 . Power . | . . . . . . Propulsion 2 | . . . 2 . . Utility 1 | . . . . 1 . Weapon 1 | . . . . 1 . Parts Attached 55 | 7 2 2 17 14 13 Power 5 | 1 . . 3 . 1 Engine 3 | 1 . . 2 . . Core 2 | . . . 1 . 1 Reactor . | . . . . . . Propulsion 19 | 2 . . 8 6 3 Treads 2 | . . . 2 . . Leg 17 | 2 . . 6 6 3 Wheel . | . . . . . . Hover . | . . . . . . Flight . | . . . . . . Utility 13 | 2 1 . 3 4 3 Device 6 | 1 . . 2 2 1 Storage 4 | 1 1 . . 2 . Processor . | . . . . . . Hackware . | . . . . . . Protection 3 | . . . 1 . 2 Artifact . | . . . . . . Weapon 18 | 2 1 2 3 4 6 Energy Gun . | . . . . . . Energy Cannon . | . . . . . . Ballistic Gun 10 | 2 . 1 3 4 . Ballistic Cannon 1 | . 1 . . . . Launcher 4 | . . 1 . . 3 Special Weapon . | . . . . . . Impact Weapon . | . . . . . . Slashing Weapon 3 | . . . . . 3 Piercing Weapon . | . . . . . . Special Melee Weapon . | . . . . . . Unidentified Prototypes . | . . . . . . Parts Lost 24 | . . . 3 10 11 Power 2 | . . . 1 . 1 Propulsion 9 | . . . . 4 5 Utility 6 | . . . 1 3 2 Weapon 7 | . . . 1 3 3 Highest Loss Streak 7 | . . . 2 3 7 To Critical Strikes . | . . . . . . Average Slot Usage (%) 92 | . 100 100 99 98 57 Engine 6 | . 14 14 8 . . Core 4 | . . . 2 9 7 Treads 1 | . . . 5 . . Leg 32 | . 28 28 38 35 20 Device 7 | . 14 14 7 5 1 Storage 13 | . 14 14 11 14 14 Protection 3 | . . . 3 6 3 Ballistic Gun 17 | . 25 14 15 26 . Ballistic Cannon 3 | . 2 14 6 . . Slashing Weapon 1 | . . . . . 6 Naked Turns . | . . . . . . Heaviest Build 31 | 12 19 20 23 30 31 Greatest Support 45 | 20 20 20 30 45 40 Greatest Overweight (x) 2 | . . . . . 2 Average Overweight (x) . | . . . . . . Largest Inventory Capacity 10 | 8 10 10 10 10 10 Average Capacity 9 | 7 9 10 10 10 8 Most Carried 10 | 8 10 10 10 10 8 Average Carried 8 | 5 9 10 9 8 4 Final Capacity 10 | 8 10 10 10 10 5 Final Carried 10 | 8 10 10 10 9 4 Class Distribution -------------------- 53% | Mutant 23% | Scavenger-Mutant 16% | Scavenger-Tank 6% | Scavenger-Gunner Dominant Class ---------------- Mutant | -10/Materials Mutant | -10/Mines Mutant | -9/Materials Scavenger-Tank | -8/Materials Scavenger-Mutant | -8/Storage Resources | -11 -10 -10 -9 -8 -8 ----------- Run | Yrd Mat Min Mat Mat Sto Matter Collected 1393 | 258 76 4 647 238 170 Remotely 641 | 154 76 4 407 . . Salvage Created 1630 | 60 76 12 484 653 345 Parts 75 | 5 8 3 20 28 11 Haulers Intercepted . | . . . . . . Recyclers Shooed 5 | . . . 1 4 . Parts Field Recycled . | . . . . . . Retrieved Matter . | . . . . . . Parts Self-Destructed . | . . . . . . Prevented . | . . . . . . Kills | -11 -10 -10 -9 -8 -8 ------- Run | Yrd Mat Min Mat Mat Sto Combat Hostiles Destroyed 39 | . 4 3 13 11 8 Melee 5 | . . . . . 5 Guns 24 | . 4 . 9 11 . Cannons 4 | . . . 4 . . AOE 6 | . . 3 . . 3 Classes Destroyed 7 | 1 2 . 3 1 . Worker 1 | . . . 1 . . Recycler 5 | 1 . . . 3 1 Swarmer 11 | . 3 3 . 3 2 Grunt 21 | . 1 . 9 6 5 Brawler 4 | . . . 2 1 1 Sentry 2 | . . . 2 . . Hunter 1 | . . . . 1 . Best Kill Streak 8 | 1 4 3 4 8 3 Combat Bots Only 5 | . 4 3 4 5 3 Max Kills in Single Turn 2 | 1 1 2 2 1 1 Gunslinging . | . . . . . . Exploded 2 | . . 2 . . 1 Melee 1 | . . . . . 1 Uniques/NPCs Destroyed . | . . . . . . Combat | -11 -10 -10 -9 -8 -8 -------- Run | Yrd Mat Min Mat Mat Sto Hostile Shots Fired 320 | . 15 9 90 109 97 Missed 95 | . 4 4 25 37 25 Damage Taken 2951 | . 89 41 761 1230 830 Core 674 | . 9 10 96 256 303 Absorbed by Shields 111 | . . . 48 . 63 Core Remaining (%) 89 | 100 . 92 76 . . Volleys Fired 107 | 2 7 2 50 40 6 Largest 3 | 2 2 1 2 3 2 Hottest 68 | 40 55 30 58 68 50 Shots Fired 247 | 4 14 2 100 120 7 Gun 206 | 4 13 . 68 120 1 Cannon 33 | . 1 . 32 . . Launcher 8 | . . 2 . . 6 Special . | . . . . . . Kinetic 239 | 4 14 . 100 120 1 Thermal . | . . . . . . Explosive 8 | . . 2 . . 6 Electromagnetic . | . . . . . . Robot Hit Streak 24 | 2 4 2 22 24 8 Robot Miss Streak 4 | 1 2 . 2 4 . Penetration Max 1 | . . . . 1 . Secondary Targets 8 | . 2 . 3 3 . Max Gunslinging Chain 1 | . 1 . 1 1 . Shots Hit Robots 197 | 3 6 2 78 83 25 Core Hits 79 | 2 4 3 26 28 16 Critical Kills 2 | . . . . 2 . Critical Parts Destroyed 2 | . . . 1 1 . Critical Strikes 4 | . . . 1 3 . Destroy 4 | . . . 1 3 . Melee Attacks 30 | . . . . . 30 Impact . | . . . . . . Slashing 30 | . . . . . 30 Piercing . | . . . . . . Sneak Attacks . | . . . . . . Combat Hostiles . | . . . . . . Follow-up Attacks . | . . . . . . Damage Inflicted 3457 | 33 76 132 1222 1081 913 Guns 1786 | 30 76 . 735 934 11 Cannons 479 | . . . 479 . . Explosions 749 | . . 132 . 147 470 Melee 432 | . . . . . 432 Ramming 11 | 3 . . 8 . . Kinetic 2265 | 30 76 . 1214 934 11 Thermal . | . . . . . . Explosive 749 | . . 132 . 147 470 Electromagnetic . | . . . . . . Impact . | . . . . . . Slashing 432 | . . . . . 432 Piercing . | . . . . . . Highest Corruption . | . . . . . . Average Corruption . | . . . . . . Corruption Purged . | . . . . . . Corruption Blocked . | . . . . . . Overload Shots . | . . . . . . Overflow Damage 45 | . . 3 18 12 12 Projectiles 18 | . . . 18 . . Explosions 18 | . . 3 . 12 3 Melee 9 | . . . . . 9 Knockbacks 6 | . . . 6 . . Impact . | . . . . . . Kinetic 6 | . . . 6 . . Secondary . | . . . . . . Self-Inflicted Damage 165 | . . . . 165 . Shots 3 | . . . . 3 . Rammed . | . . . . . . Targets Rammed 4 | 1 . . 3 . . Kicked 4 | 1 . . 3 . . Crushed . | . . . . . . Highest Temperature 63 | . 6 . 27 63 14 Average Temperature 17 | . 6 . 7 23 7 Received Heat Transfer 1174 | . 6 . 376 432 360 Siege Activations . | . . . . . . Robots Corrupted . | . . . . . . Combat Hostiles . | . . . . . . Parts Fried . | . . . . . . Impact Corruptions . | . . . . . . Robots Melted . | . . . . . . Combat Hostiles . | . . . . . . Parts Melted . | . . . . . . Heat Transferred . | . . . . . . Parts Sabotaged . | . . . . . . Parts Stolen . | . . . . . . Parts Stripped . | . . . . . . Power Chain Reactions . | . . . . . . Alert | -11 -10 -10 -9 -8 -8 ------- Run | Yrd Mat Min Mat Mat Sto Peak Influence 379 | 5 108 124 254 379 222 Initial 96 | . 3 42 48 28 96 Average 115 | 2 43 111 127 178 152 Maximum Alert Level 1 | . . . 1 1 1 Low Security (%) 81 | 100 100 100 80 47 99 Level 1 18 | . . . 19 52 . Level 2 . | . . . . . . Level 3 . | . . . . . . Level 4 . | . . . . . . Level 5 . | . . . . . . High Security . | . . . . . . Max Security . | . . . . . . Squads Dispatched 4 | . 1 . 1 1 1 Investigation . | . . . . . . Extermination . | . . . . . . Reinforcement 3 | . 1 . 1 . 1 Assault . | . . . . . . Garrison 1 | . . . . 1 . Intercept . | . . . . . . Searches Triggered . | . . . . . . Construction Impeded . | . . . . . . Haulers Reinforced . | . . . . . . Active Scanning Responses . | . . . . . . Cargo Convoy Interrupts . | . . . . . . Stealth | -11 -10 -10 -9 -8 -8 --------- Run | Yrd Mat Min Mat Mat Sto Distress Signals 4 | . 1 . 1 2 . Communications Jammed . | . . . . . . Distress Signals . | . . . . . . Times Spotted 58 | . 8 4 18 16 12 Peak Tracking Total 5 | . 5 3 5 5 3 Tactical Retreats 3 | . . 1 1 1 . Traps | -11 -10 -10 -9 -8 -8 ------- Run | Yrd Mat Min Mat Mat Sto Traps Triggered 2 | . . . . . 2 Indirectly . | . . . . . . Trap Hack Attempts . | . . . . . . Triggered . | . . . . . . Disarmed 4 | . 4 . . . . Reprogrammed . | . . . . . . Reused . | . . . . . . Traps Extracted . | . . . . . . Installed . | . . . . . . Triggered . | . . . . . . Machines | -11 -10 -10 -9 -8 -8 ---------- Run | Yrd Mat Min Mat Mat Sto Machines Disabled 5 | . . . . 4 1 Max in Single Turn 2 | . . . . 2 1 Machines Repaired . | . . . . . . Machines Dismantled . | . . . . . . Machines Sabotaged . | . . . . . . Overloaded Fab Kills . | . . . . . . Hacking | -11 -10 -10 -9 -8 -8 --------- Run | Yrd Mat Min Mat Mat Sto Machines Accessed 8 | . 3 . 2 3 . Terminals 8 | . 3 . 2 3 . Fabricators . | . . . . . . Repair Stations . | . . . . . . Recycling Units . | . . . . . . Scanalyzers . | . . . . . . Garrison Access . | . . . . . . Total Hacks 28 | . 8 . 11 9 . Successful 12 | . 4 . 4 4 . Failed 16 | . 4 . 7 5 . Catastrophic 4 | . . . 1 3 . Database Lockouts . | . . . . . . Manual 6 | . . . 2 4 . Terminals 28 | . 8 . 11 9 . Fabricators . | . . . . . . Repair Stations . | . . . . . . Recycling Units . | . . . . . . Scanalyzers . | . . . . . . Garrison Access . | . . . . . . Terminal Hacks 12 | . 4 . 4 4 . Emergency Access Points 1 | . . . . 1 . Alert Level 5 | . 1 . 2 2 . Unreport Threat 2 | . . . 1 1 . Locate Traps 1 | . 1 . . . . Disarm Traps 1 | . 1 . . . . Dispatch Records 1 | . 1 . . . . Maintenance Status 1 | . . . 1 . . Fabricator Hacks . | . . . . . . Repair Station Hacks . | . . . . . . Recycling Unit Hacks . | . . . . . . Scanalyzer . | . . . . . . Garrison Access Hacks . | . . . . . . Unauthorized Hacks . | . . . . . . Terminals . | . . . . . . Fabricators . | . . . . . . Repair Stations . | . . . . . . Recycling Units . | . . . . . . Scanalyzers . | . . . . . . Garrison Access . | . . . . . . Data Cores Recovered . | . . . . . . Used . | . . . . . . Hacking Detections 8 | . 3 . 2 3 . Full Trace Events . | . . . . . . Feedback Events . | . . . . . . Feedback Blocked . | . . . . . . Robot Schematics Acquired . | . . . . . . Robots Built . | . . . . . . Authchips . | . . . . . . Time . | . . . . . . Total Robot Build Rating . | . . . . . . Part Schematics Acquired . | . . . . . . Parts Built . | . . . . . . Authchips . | . . . . . . Time . | . . . . . . Total Part Build Rating . | . . . . . . Parts Repaired . | . . . . . . Time . | . . . . . . Parts Recycled . | . . . . . . Recycled Matter . | . . . . . . Retrieved Matter . | . . . . . . Retrieved Components . | . . . . . . Parts Scanalyzed . | . . . . . . Part Schematics Acquired . | . . . . . . Parts Damaged . | . . . . . . Bothacking | -11 -10 -10 -9 -8 -8 ------------ Run | Yrd Mat Min Mat Mat Sto Used RIF Installer . | . . . . . . Robots Hacked . | . . . . . . Non-combat . | . . . . . . Combat . | . . . . . . Robot Hacks Applied . | . . . . . . Relay Couplers Released . | . . . . . . Fabnet Peak Effective % . | . . . . . . Robots Rewired . | . . . . . . Allies Hacked . | . . . . . . Hacks Repelled . | . . . . . . Allies | -11 -10 -10 -9 -8 -8 -------- Run | Yrd Mat Min Mat Mat Sto Total Allies . | . . . . . . Largest Group . | . . . . . . Highest-Rated Group . | . . . . . . Highest-Rated Ally . | . . . . . . Total Orders . | . . . . . . Ally Attacks . | . . . . . . Total Damage . | . . . . . . Kills . | . . . . . . Allies Corrupted . | . . . . . . Allies Melted . | . . . . . . Intel | -11 -10 -10 -9 -8 -8 ------- Run | Yrd Mat Min Mat Mat Sto Robot Analysis Total . | . . . . . . Derelict Logs Recovered . | . . . . . . Drone Launches . | . . . . . . Drone Recoveries . | . . . . . . Exploration | -11 -10 -10 -9 -8 -8 ------------- Run | Yrd Mat Min Mat Mat Sto Turns Passed 1528 | 190 202 85 474 361 216 Spaces Moved 793 | 142 141 66 213 156 75 Core 16 | 10 . . . . 6 Treads . | . . . . . . Legs 777 | 132 141 66 213 156 69 Wheels . | . . . . . . Hover . | . . . . . . Flight . | . . . . . . Fastest Speed 50 | 50 120 120 120 120 100 Average Speed 119 | 115 120 120 120 120 125 Slowest Speed 260 | 120 120 120 120 120 260 Overloaded Moves . | . . . . . . Propulsion Burnouts . | . . . . . . Robots Hopped . | . . . . . . Cave-ins Triggered . | . . . . . . Exploration Rate (%) 19 | 6 36 18 25 18 15 Regions Visited 5 Branch Regions 2 Pre-discovered Areas . | . . . . . . Known Exits Taken . | . . . . . . Unknown Exits Taken 5 | 1 1 1 1 1 . Scrap Searched . | . . . . . . Spaces Dug . | . . . . . . Terrain Destroyed 99 | . . 15 . 43 41 Melee . | . . . . . . Projectile . | . . . . . . AOE 99 | . . 15 . 43 41 Terrain Rammed . | . . . . . . Walls Destroyed . | . . . . . . Machines Disabled . | . . . . . . Actions | -11 -10 -10 -9 -8 -8 --------- Run | Yrd Mat Min Mat Mat Sto Total 1099 | 162 164 69 335 239 130 Wait 54 | 2 1 . 30 21 . Move 788 | 141 140 65 212 155 75 Hop . | . . . . . . Pick Up 32 | 9 7 . 8 6 2 Fast Attach 15 | 6 1 . 3 1 4 Attach 22 | 1 . . 5 9 7 Detach 5 | . . . 2 1 2 Swap 18 | . 1 2 9 4 2 Drop 24 | . 7 . 13 2 2 Fire 107 | 2 7 2 50 40 6 Melee 30 | . . . . . 30 Ram . | . . . . . . Kick 4 | 1 . . 3 . . Crush . | . . . . . . Escape Stasis . | . . . . . . Rewire . | . . . . . . Trap . | . . . . . . Miscellaneous . | . . . . . . Route ------- -11/Scrapyard -10/Materials -10/Mines -9/Materials -8/Materials -8/Storage History --------- Turn | Location | Event 2 | -11/Scrapyard | Discovered new exit (range 16) 191 | -11/Scrapyard | Entered Materials 304 | -10/Materials | Build established: Mutant 349 | -10/Materials | Discovered new exit (range 14) 393 | -10/Materials | Entered Mines 402 | -10/Mines | Discovered new exit (range 13) 435 | -10/Mines | Assembled infested the area 478 | -10/Mines | Entered Materials 478 | -9/Materials | Evolved 2 slots: Propulsion x2 945 | -9/Materials | Discovered new exit (range 7) 952 | -9/Materials | Entered another Materials area 952 | -8/Materials | Evolved 2 slots: Utility x1, Weapon x1 1219 | -8/Materials | Garrison activated, responded to threat 1278 | -8/Materials | Lost 3 parts (2n1w) 1278 | -8/Materials | Discovered new exit (range 13) 1313 | -8/Materials | Entered Storage 1360 | -8/Storage | Lost 5 parts (1n1u3w) 1403 | -8/Storage | Core integrity fell below 50% 1466 | -8/Storage | Lost 7 parts (4n2u1w) 1506 | -8/Storage | Core integrity fell below 20% 1529 | -8/Storage | Destroyed by G-47 Trooper with Particle Gun Last Messages --------------- 01446_ K-01 Serf collects debris. 01448_ Dropped Lgt. Nuclear Core. 01451_ U-05 Engineer lays Concrete. 01451_ K-01 Serf collects debris. 01452_ U-05 Engineer lays Concrete. 01453_ Acquired Imp. Heat Sink. 01455_ K-01 Serf collects debris. 01457_ Dropped Imp. Heat Sink. 01458_ K-01 Serf collects debris. 01478_ Aluminum Leg destroyed. 01486_ Destroyed Flight Unit. 01490_ Lgt. Nuclear Core destroyed. 01493_ S-10 Pest destroyed. 01502_ Destroyed Flight Unit. 01508_ S-10 Pest destroyed. 01511_ Acquired 20 matter. 01513_ Acquired 13 matter. 01515_ Terminal disabled. 01527_ Critical hit (Burn: +37). 01528_ G-47 Trooper destroyed. Map ----- +----------------------------------------------------+ | ????# #?????? # # #??????????? | | ????# #???????##???? "??????????? | | ????# #?????????????????????????? | | ????# #?????????????????????????? | | ????# #?????????????????????????? | | ????# #?????????????????????????? | | ????# #?????????????????????????? | | ????# #?????????????????????????? | | ????# ##########????????????????? | | ????# # #????????????????? | | ????#^^ # #????????????????? | | ???## # #????????????????? | | ???# = # #????????????????? | | ????#% *+ #????????????????? | | ????# # #????????????????? | | ????# #! #????????????????? | | ????# + #????????????????? | | ????# # #????????????????? | | ????# ##########????????????????? | | ????# # ????????????????? | | ????# # ?????????????????? | | ????# # """ #???????????????? | | ????# # g """ +???????????????? | | ????# # "" """ #???????????????? | | ????# #g"T #???????????????? | | ????# # @*= #???????????????? | | ????# #[!*% #???????????????? | | ????# ##+########???????????????? | | ????# * #??????????????????????? | | ????# =#??????????????????????? | | ???# =+%?????????????????????? | | ???# # "????????????????????? | | ???# ###????????????????????? | | ???# #??????????????????????? | | ???# #####+#??????????????????????? | | ???# ?????????????????????????????? | | ???# ?????????????????????????????? | | ???# ?????????????????????????????? | | ???#??????????????????????????????? | | ??????????????????????????????????? | | ??????????????????????????????????? | | ??????????????????????????????????? | | ??????????????????????????????????? | | ??????????????????????????????????? | | ??????????????????????????????????? | | ??????????????????????????????????? | | ??????????????????????????????????? | | ??????????????????????????????????? | | ??????????????????????????????????? | | ??????????????????????????????????? | +----------------------------------------------------+ Best States ------------- Heat Dissipation 31 Energy Generation 14 Energy Capacity 250 Matter Stores 426 Matter Capacity 500 Sight Range 16 Terrain Scan Density 10 Armor Coverage 150 Evasion (%) 55 Recoil Reduction 4 Item Schematics ----------------- None Robot Schematics ------------------ None Fabricated ------------ Nothing Alien Tech Used ----------------- None Achievements -------------- None Challenges ------------ None Game ------ Seed SystemChainDrive Manual? 0 Play Time 00:35:13 Cumulative 80.4 hours Start 2024.05.15 @ 17:41:55 End 2024.05.15 @ 18:26:56 Sessions 1 Manual Loads 0 Difficulty Rogue Special Mode None Game No. 43 Rogue 43 Adventurer 0 Explorer 0 Win Type - Total 0 Types 0/0/0/0/0/0/0/0/0 Lore% 37 Gallery% 57 Achievement% 32 Wizard Run 0 Options --------- Layout 1 ASCII 1 Keyboard 1 Movement Vi Keybinds 0 Fullscreen 1 Font 24/Smallcaps Map View 50x35 Zoom Use 20% Tactical HUD 1 Map Filters NONE Filters NONE Steam 1 RUN: 22f525b0-5895-4d0b-8dd9-27a37f958b93